[Event "*** Titled Tuesday Blitz"]
[Site "Chess.com"]
[Date "2019.07.02"]
[Round "6"]
[White "M1711"]
[Black "darsen_sanzhaev"]
[Result "0-1"]
[WhiteElo "2497"]
[BlackElo "2636"]
[TimeControl "180+2"]
[EndTime "14:24:18 PDT"]
[Termination "darsen_sanzhaev won by checkmate"]

1. d4 {[%clk 0:03:01.9]} 1... Nf6 {[%clk 0:03:00.4]} 2. Bg5 {[%clk 0:03:02.4]}
2... Ne4 {[%clk 0:03:00.6]} 3. Bf4 {[%clk 0:03:03.6]} 3... c5 {[%clk 0:03:01.8]}
4. f3 {[%clk 0:03:04.3]} 4... Qa5+ {[%clk 0:02:59.9]} 5. c3 {[%clk 0:03:05.6]}
5... Nf6 {[%clk 0:03:01.3]} 6. d5 {[%clk 0:03:06.7]} 6... Qb6 {[%clk 0:02:38.1]}
7. e4 {[%clk 0:03:06.8]} 7... Qxb2 {[%clk 0:02:25.7]} 8. Nd2 {[%clk 0:03:06.9]}
8... Qxc3 {[%clk 0:02:26.2]} 9. Bc7 {[%clk 0:03:07.9]} 9... Na6 {[%clk
0:02:14.5]} 10. Ne2 {[%clk 0:03:05]} 10... Qa3 {[%clk 0:02:02.9]} 11. Be5 {[%clk
0:02:50.8]} 11... d6 {[%clk 0:01:56.9]} 12. Bc3 {[%clk 0:02:50.6]} 12... Bd7
{[%clk 0:01:54]} 13. Qb1 {[%clk 0:02:18.5]} 13... b5 {[%clk 0:01:32.7]} 14. Kf2
{[%clk 0:02:05.6]} 14... g6 {[%clk 0:01:20.6]} 15. Bb2 {[%clk 0:01:59.4]} 15...
Qa5 {[%clk 0:01:19.9]} 16. Bc3 {[%clk 0:01:43]} 16... Qb6 {[%clk 0:01:19.5]} 17.
a4 {[%clk 0:01:29.2]} 17... Bg7 {[%clk 0:01:05]} 18. axb5 {[%clk 0:01:26.6]}
18... Bxb5 {[%clk 0:01:05.3]} 19. Nf4 {[%clk 0:01:13.1]} 19... Bxf1 {[%clk
0:01:01.6]} 20. Rxf1 {[%clk 0:01:11.4]} 20... Ng4+ {[%clk 0:00:55.7]} 21. fxg4
{[%clk 0:01:08.2]} 21... Bxc3 {[%clk 0:00:55.9]} 22. Nc4 {[%clk 0:00:56.8]}
22... Qxb1 {[%clk 0:00:56.9]} 23. Raxb1 {[%clk 0:00:57.4]} 23... Nb4 {[%clk
0:00:58.4]} 24. Ne2 {[%clk 0:00:53.1]} 24... Bg7 {[%clk 0:00:54.9]} 25. Rb3
{[%clk 0:00:33.6]} 25... O-O {[%clk 0:00:39.7]} 26. Ra3 {[%clk 0:00:34.5]} 26...
a6 {[%clk 0:00:33.9]} 27. Rb1 {[%clk 0:00:27.3]} 27... Rfb8 {[%clk 0:00:32.6]}
28. Kf3 {[%clk 0:00:28.7]} 28... Kf8 {[%clk 0:00:29.3]} 29. Nc1 {[%clk
0:00:18.4]} 29... Ke8 {[%clk 0:00:23]} 30. Na5 {[%clk 0:00:18.7]} 30... Nc2
{[%clk 0:00:16.2]} 31. Rxb8+ {[%clk 0:00:17.6]} 31... Rxb8 {[%clk 0:00:18]} 32.
Ra2 {[%clk 0:00:08.4]} 32... Nd4+ {[%clk 0:00:16.4]} 33. Kf2 {[%clk 0:00:08.5]}
33... Ra8 {[%clk 0:00:11]} 34. Nd3 {[%clk 0:00:06]} 34... Nb5 {[%clk 0:00:11.4]}
35. Nc4 {[%clk 0:00:04.9]} 35... Nc3 {[%clk 0:00:12.2]} 36. Ra5 {[%clk
0:00:05.3]} 36... Nxe4+ {[%clk 0:00:13.5]} 37. Kf3 {[%clk 0:00:05.8]} 37... Nc3
{[%clk 0:00:15.1]} 38. Nb6 {[%clk 0:00:05.8]} 38... Ra7 {[%clk 0:00:15.6]} 39.
Nc8 {[%clk 0:00:06.8]} 39... Rc7 {[%clk 0:00:16.2]} 40. Nb6 {[%clk 0:00:07.2]}
40... Ra7 {[%clk 0:00:13.5]} 41. Nc8 {[%clk 0:00:08.2]} 41... Rc7 {[%clk
0:00:13.6]} 42. Nb6 {[%clk 0:00:09.1]} 42... Bd4 {[%clk 0:00:11.7]} 43. Rxa6
{[%clk 0:00:09.5]} 43... f6 {[%clk 0:00:12.7]} 44. Nf4 {[%clk 0:00:09.4]} 44...
Rb7 {[%clk 0:00:11]} 45. Ra8+ {[%clk 0:00:06.4]} 45... Kf7 {[%clk 0:00:12.2]}
46. Ne6 {[%clk 0:00:08.1]} 46... g5 {[%clk 0:00:09]} 47. Rf8+ {[%clk 0:00:09]}
47... Kg6 {[%clk 0:00:10.1]} 48. Rg8+ {[%clk 0:00:08.8]} 48... Kh6 {[%clk
0:00:11.4]} 49. Nc8 {[%clk 0:00:04.8]} 49... Nxd5 {[%clk 0:00:12.3]} 50. h4
{[%clk 0:00:04]} 50... gxh4 {[%clk 0:00:09.5]} 51. Ke4 {[%clk 0:00:03.7]} 51...
Nc7 {[%clk 0:00:07.2]} 52. Nf8 {[%clk 0:00:03]} 52... Rb3 {[%clk 0:00:06.3]} 53.
g5+ {[%clk 0:00:02.4]} 53... fxg5 {[%clk 0:00:06.4]} 54. Kf5 {[%clk 0:00:03.7]}
54... e6+ {[%clk 0:00:04.7]} 55. Ke4 {[%clk 0:00:02.9]} 55... Re3# {[%clk
0:00:05.4]} 0-1

[Event "*** Titled Tuesday Blitz"]
[Site "Chess.com"]
[Date "2019.07.02"]
[Round "6"]
[White "Witik"]
[Black "PIwan"]
[Result "0-1"]
[WhiteElo "2526"]
[BlackElo "2467"]
[TimeControl "180+2"]
[EndTime "14:24:22 PDT"]
[Termination "PIwan won on time"]

1. c4 {[%clk 0:03:01.3]} 1... e6 {[%clk 0:02:57]} 2. g3 {[%clk 0:03:00]} 2... d5
{[%clk 0:02:58.2]} 3. Bg2 {[%clk 0:03:01]} 3... Nf6 {[%clk 0:02:52.9]} 4. Nf3
{[%clk 0:03:00.8]} 4... Be7 {[%clk 0:02:54]} 5. O-O {[%clk 0:03:01.4]} 5... O-O
{[%clk 0:02:55.6]} 6. b3 {[%clk 0:02:58.1]} 6... b6 {[%clk 0:02:54.9]} 7. Bb2
{[%clk 0:02:53.7]} 7... Bb7 {[%clk 0:02:56.2]} 8. e3 {[%clk 0:02:46.9]} 8...
dxc4 {[%clk 0:02:56.1]} 9. bxc4 {[%clk 0:02:47.5]} 9... c5 {[%clk 0:02:57]} 10.
Qe2 {[%clk 0:02:42.2]} 10... Be4 {[%clk 0:02:46.6]} 11. Ne5 {[%clk 0:02:35.2]}
11... Bxg2 {[%clk 0:02:39.6]} 12. Kxg2 {[%clk 0:02:37.1]} 12... Qc7 {[%clk
0:02:40.8]} 13. f4 {[%clk 0:02:29.3]} 13... Nc6 {[%clk 0:02:36.1]} 14. d3 {[%clk
0:01:49.6]} 14... Rad8 {[%clk 0:02:30.2]} 15. Nd2 {[%clk 0:01:34.5]} 15... Nxe5
{[%clk 0:02:17.2]} 16. fxe5 {[%clk 0:01:32.8]} 16... Qc6+ {[%clk 0:02:12.2]} 17.
Nf3 {[%clk 0:01:28.8]} 17... Nd7 {[%clk 0:02:03.7]} 18. d4 {[%clk 0:00:54.9]}
18... f6 {[%clk 0:01:36.1]} 19. e4 {[%clk 0:00:55.9]} 19... fxe5 {[%clk
0:00:44.9]} 20. d5 {[%clk 0:00:56.8]} 20... exd5 {[%clk 0:00:46.1]} 21. exd5
{[%clk 0:00:54.7]} 21... Qg6 {[%clk 0:00:46.4]} 22. Nxe5 {[%clk 0:00:43.7]}
22... Nxe5 {[%clk 0:00:47.4]} 23. Qxe5 {[%clk 0:00:43.8]} 23... Rfe8 {[%clk
0:00:32.3]} 24. Qf5 {[%clk 0:00:37.1]} 24... Qxf5 {[%clk 0:00:23.7]} 25. Rxf5
{[%clk 0:00:39]} 25... Bd6 {[%clk 0:00:24.3]} 26. Raf1 {[%clk 0:00:33.7]} 26...
Re7 {[%clk 0:00:22.5]} 27. a4 {[%clk 0:00:32]} 27... Rde8 {[%clk 0:00:23.3]} 28.
R1f2 {[%clk 0:00:28.7]} 28... Re2 {[%clk 0:00:23.9]} 29. Rxe2 {[%clk 0:00:18.9]}
29... Rxe2+ {[%clk 0:00:25.8]} 30. Rf2 {[%clk 0:00:20.5]} 30... Re4 {[%clk
0:00:26.7]} 31. Rc2 {[%clk 0:00:22.1]} 31... g6 {[%clk 0:00:25.7]} 32. Kf3
{[%clk 0:00:23.4]} 32... Re1 {[%clk 0:00:26.8]} 33. Re2 {[%clk 0:00:23.3]} 33...
Rb1 {[%clk 0:00:11.4]} 34. Be5 {[%clk 0:00:16.6]} 34... Bxe5 {[%clk 0:00:09.9]}
35. Rxe5 {[%clk 0:00:17.6]} 35... Kf7 {[%clk 0:00:11.6]} 36. d6 {[%clk
0:00:15.1]} 36... Rd1 {[%clk 0:00:12.7]} 37. Re7+ {[%clk 0:00:16.1]} 37... Kf6
{[%clk 0:00:13.9]} 38. Rxh7 {[%clk 0:00:14.1]} 38... Rxd6 {[%clk 0:00:14.8]} 39.
Rxa7 {[%clk 0:00:15.2]} 39... Ke5 {[%clk 0:00:16.1]} 40. Ke3 {[%clk 0:00:13.4]}
40... Re6 {[%clk 0:00:16]} 41. Rf7 {[%clk 0:00:08]} 41... Kd6+ {[%clk
0:00:13.6]} 42. Kf4 {[%clk 0:00:08.4]} 42... Re2 {[%clk 0:00:12.5]} 43. Rf6+
{[%clk 0:00:09.2]} 43... Kc7 {[%clk 0:00:13.9]} 44. h4 {[%clk 0:00:10.5]} 44...
Rc2 {[%clk 0:00:14.7]} 45. Rxg6 {[%clk 0:00:09.2]} 45... Rxc4+ {[%clk
0:00:16.2]} 46. Kg5 {[%clk 0:00:10.9]} 46... Rxa4 {[%clk 0:00:17.6]} 47. h5
{[%clk 0:00:11.8]} 47... Ra1 {[%clk 0:00:18.5]} 48. h6 {[%clk 0:00:12.5]} 48...
Rh1 {[%clk 0:00:19.5]} 49. Rg7+ {[%clk 0:00:08.8]} 49... Kc6 {[%clk 0:00:20.7]}
50. g4 {[%clk 0:00:09.1]} 50... c4 {[%clk 0:00:22]} 51. Kg6 {[%clk 0:00:10.2]}
51... c3 {[%clk 0:00:23.2]} 52. Rg8 {[%clk 0:00:11.8]} 52... Kc7 {[%clk
0:00:23.8]} 53. Rg7+ {[%clk 0:00:11.8]} 53... Kc6 {[%clk 0:00:25]} 54. Rg8
{[%clk 0:00:11.7]} 54... Kc7 {[%clk 0:00:26.3]} 55. Rg7+ {[%clk 0:00:09.5]}
55... Kd6 {[%clk 0:00:25.7]} 56. Rg8 {[%clk 0:00:08.3]} 56... c2 {[%clk
0:00:25]} 57. Rc8 {[%clk 0:00:07.8]} 57... c1=Q {[%clk 0:00:26.1]} 58. Rxc1
{[%clk 0:00:09.1]} 58... Rxc1 {[%clk 0:00:28]} 59. h7 {[%clk 0:00:09.2]} 59...
Rh1 {[%clk 0:00:29.4]} 60. Kg7 {[%clk 0:00:10.6]} 60... Ke6 {[%clk 0:00:25.1]}
61. g5 {[%clk 0:00:10.5]} 61... Kf5 {[%clk 0:00:26.1]} 62. g6 {[%clk 0:00:11.6]}
62... b5 {[%clk 0:00:25.1]} 63. Kf7 {[%clk 0:00:05.9]} 63... b4 {[%clk
0:00:25.6]} 64. h8=Q {[%clk 0:00:02.8]} 64... Rxh8 {[%clk 0:00:25.9]} 0-1

[Event "*** Titled Tuesday Blitz"]
[Site "Chess.com"]
[Date "2019.07.02"]
[Round "6"]
[White "KaterynaLagno"]
[Black "Qvalda"]
[Result "1-0"]
[WhiteElo "2660"]
[BlackElo "2496"]
[TimeControl "180+2"]
[EndTime "14:24:29 PDT"]
[Termination "KaterynaLagno won on time"]

1. e4 {[%clk 0:03:01.9]} 1... c5 {[%clk 0:03:00.5]} 2. Nf3 {[%clk 0:03:02.4]}
2... g6 {[%clk 0:03:01.1]} 3. d4 {[%clk 0:03:02.7]} 3... cxd4 {[%clk 0:03:03]}
4. Nxd4 {[%clk 0:03:03.4]} 4... Nc6 {[%clk 0:03:02.6]} 5. c4 {[%clk 0:03:03.7]}
5... Nf6 {[%clk 0:03:02]} 6. Nc3 {[%clk 0:03:04.7]} 6... Nxd4 {[%clk 0:03:03.3]}
7. Qxd4 {[%clk 0:03:05]} 7... d6 {[%clk 0:03:04.8]} 8. Bg5 {[%clk 0:03:05.7]}
8... Bg7 {[%clk 0:03:06.2]} 9. Qd2 {[%clk 0:03:07.2]} 9... O-O {[%clk
0:03:06.6]} 10. Bd3 {[%clk 0:03:08.8]} 10... a5 {[%clk 0:03:03.2]} 11. b3 {[%clk
0:03:04.7]} 11... a4 {[%clk 0:02:57.3]} 12. b4 {[%clk 0:03:05.3]} 12... Be6
{[%clk 0:02:51.8]} 13. Rc1 {[%clk 0:03:05.4]} 13... Qb6 {[%clk 0:02:23]} 14. a3
{[%clk 0:03:01]} 14... Rfc8 {[%clk 0:02:23.7]} 15. Nd5 {[%clk 0:02:58.5]} 15...
Bxd5 {[%clk 0:02:10.4]} 16. exd5 {[%clk 0:03:00.4]} 16... Qd4 {[%clk 0:01:27.8]}
17. O-O {[%clk 0:02:52.1]} 17... b5 {[%clk 0:01:25.1]} 18. Be3 {[%clk
0:02:45.8]} 18... Qh4 {[%clk 0:01:23.5]} 19. cxb5 {[%clk 0:02:38.2]} 19... Rxc1
{[%clk 0:01:13]} 20. Qxc1 {[%clk 0:02:35.4]} 20... Ng4 {[%clk 0:00:59.5]} 21.
Bf4 {[%clk 0:02:19.8]} 21... Bd4 {[%clk 0:00:49.5]} 22. Bg3 {[%clk 0:02:18.3]}
22... Qf6 {[%clk 0:00:43.7]} 23. Qc6 {[%clk 0:02:12.7]} 23... Rb8 {[%clk
0:00:40.6]} 24. Qc7 {[%clk 0:02:13.2]} 24... Rb6 {[%clk 0:00:37.6]} 25. Be2
{[%clk 0:02:00.5]} 25... Ne5 {[%clk 0:00:24.1]} 26. Rd1 {[%clk 0:01:59]} 26...
h5 {[%clk 0:00:16.5]} 27. h4 {[%clk 0:01:50.2]} 27... Ng4 {[%clk 0:00:13.6]} 28.
Bxg4 {[%clk 0:01:49.3]} 28... hxg4 {[%clk 0:00:14.9]} 29. Re1 {[%clk 0:01:48]}
29... Rxb5 {[%clk 0:00:09.8]} 30. Rxe7 {[%clk 0:01:43.2]} 30... Rxd5 {[%clk
0:00:10.8]} 31. Re8+ {[%clk 0:01:40.3]} 31... Kg7 {[%clk 0:00:10.5]} 32. Qc8
{[%clk 0:01:42]} 32... Bxf2+ {[%clk 0:00:10.2]} 33. Bxf2 {[%clk 0:01:40.5]}
33... Rd1+ {[%clk 0:00:11]} 34. Kh2 {[%clk 0:01:41.5]} 34... Qxf2 {[%clk
0:00:04]} 35. Rg8+ {[%clk 0:01:41.9]} 35... Kf6 {[%clk 0:00:04.3]} 36. Qd8+
{[%clk 0:01:42.9]} 36... Ke6 {[%clk 0:00:04.4]} 37. Re8+ {[%clk 0:01:41.8]}
37... Kd5 {[%clk 0:00:05.6]} 38. Qa5+ {[%clk 0:01:35.1]} 38... Kc4 {[%clk
0:00:05.9]} 39. Re4+ {[%clk 0:00:15.3]} 39... Kb3 {[%clk 0:00:06.8]} 40. Rxg4
{[%clk 0:00:16.7]} 40... Qg1+ {[%clk 0:00:07.8]} 41. Kh3 {[%clk 0:00:18.2]}
41... Rd3+ {[%clk 0:00:03.6]} 42. Rg3 {[%clk 0:00:19.1]} 42... Qh1+ {[%clk
0:00:04.8]} 43. Kg4 {[%clk 0:00:20.6]} 43... Qd1+ {[%clk 0:00:05.3]} 44. Rf3
{[%clk 0:00:22]} 44... Rxf3 {[%clk 0:00:04.4]} 45. gxf3 {[%clk 0:00:22.9]} 45...
Qd4+ {[%clk 0:00:05.5]} 46. f4 {[%clk 0:00:23.5]} 46... Kxa3 {[%clk 0:00:06.3]}
47. b5 {[%clk 0:00:24.2]} 47... Qg1+ {[%clk 0:00:07]} 48. Kf3 {[%clk 0:00:24.2]}
48... Qf1+ {[%clk 0:00:08.1]} 49. Ke4 {[%clk 0:00:24.7]} 49... Qc4+ {[%clk
0:00:09]} 50. Ke3 {[%clk 0:00:23.6]} 50... Qb3+ {[%clk 0:00:07.6]} 51. Kd4
{[%clk 0:00:22.7]} 51... Qd1+ {[%clk 0:00:05.2]} 52. Kc4 {[%clk 0:00:20.1]}
52... Qe2+ {[%clk 0:00:04.4]} 53. Kd5 {[%clk 0:00:20.7]} 53... Qd3+ {[%clk
0:00:05]} 54. Kc6 {[%clk 0:00:21.5]} 54... Qc4+ {[%clk 0:00:05.5]} 55. Kxd6
{[%clk 0:00:22.9]} 55... Kb3 {[%clk 0:00:04.6]} 56. b6 {[%clk 0:00:23.5]} 56...
Qxf4+ {[%clk 0:00:04.9]} 57. Kc6 {[%clk 0:00:23.8]} 57... Qc4+ {[%clk
0:00:05.5]} 58. Qc5 {[%clk 0:00:25.5]} 58... a3 {[%clk 0:00:04]} 59. b7 {[%clk
0:00:25.1]} 59... Qxc5+ {[%clk 0:00:03.6]} 60. Kxc5 {[%clk 0:00:25.7]} 60... a2
{[%clk 0:00:04.5]} 61. b8=Q+ {[%clk 0:00:26.9]} 61... Kc2 {[%clk 0:00:04.8]} 62.
Qe5 {[%clk 0:00:23.8]} 62... Kb1 {[%clk 0:00:05.8]} 63. Qe1+ {[%clk 0:00:23.4]}
63... Kb2 {[%clk 0:00:07]} 64. Qd2+ {[%clk 0:00:24.5]} 64... Kb1 {[%clk
0:00:07]} 65. Kb4 {[%clk 0:00:23.6]} 65... a1=Q {[%clk 0:00:07.7]} 66. Kb3
{[%clk 0:00:24.6]} 1-0

[Event "*** Titled Tuesday Blitz"]
[Site "Chess.com"]
[Date "2019.07.02"]
[Round "6"]
[White "DerSchachaffe"]
[Black "wnstop"]
[Result "1-0"]
[WhiteElo "2428"]
[BlackElo "2672"]
[TimeControl "180+2"]
[EndTime "14:24:42 PDT"]
[Termination "DerSchachaffe won by checkmate"]

1. e4 {[%clk 0:03:01.8]} 1... c5 {[%clk 0:03:00.5]} 2. Nf3 {[%clk 0:03:02.7]}
2... Nc6 {[%clk 0:03:01.1]} 3. d4 {[%clk 0:03:04]} 3... cxd4 {[%clk 0:03:02.3]}
4. Nxd4 {[%clk 0:03:05.9]} 4... e5 {[%clk 0:03:03.8]} 5. Nb5 {[%clk 0:03:06.7]}
5... d6 {[%clk 0:03:05.4]} 6. c4 {[%clk 0:03:07.7]} 6... Be7 {[%clk 0:03:06]} 7.
Bd3 {[%clk 0:03:07.1]} 7... Be6 {[%clk 0:03:04.9]} 8. O-O {[%clk 0:03:03.3]}
8... Nf6 {[%clk 0:03:05.3]} 9. N5c3 {[%clk 0:03:03.9]} 9... Nd7 {[%clk
0:03:03.6]} 10. Nd5 {[%clk 0:03:04.4]} 10... O-O {[%clk 0:03:04.2]} 11. Nbc3
{[%clk 0:03:02.3]} 11... Nc5 {[%clk 0:03:03.5]} 12. b4 {[%clk 0:02:56]} 12...
Nxd3 {[%clk 0:03:02.5]} 13. Qxd3 {[%clk 0:02:57.6]} 13... Bg5 {[%clk 0:02:55]}
14. b5 {[%clk 0:02:40.5]} 14... Nd4 {[%clk 0:02:46.5]} 15. f4 {[%clk 0:02:38.8]}
15... Bf6 {[%clk 0:02:18.6]} 16. Nxf6+ {[%clk 0:02:22.1]} 16... Qxf6 {[%clk
0:02:16.1]} 17. fxe5 {[%clk 0:02:22.2]} 17... Qxe5 {[%clk 0:02:16.8]} 18. Bf4
{[%clk 0:02:21.7]} 18... Qc5 {[%clk 0:01:55.9]} 19. Be3 {[%clk 0:02:14.9]} 19...
Bxc4 {[%clk 0:01:54.5]} 20. Qd2 {[%clk 0:02:03.1]} 20... Bxf1 {[%clk 0:01:43.6]}
21. Bxd4 {[%clk 0:02:03.7]} 21... Qc4 {[%clk 0:01:34.5]} 22. Rxf1 {[%clk
0:01:58.4]} 22... f6 {[%clk 0:01:21.3]} 23. Nd5 {[%clk 0:01:44.1]} 23... Rae8
{[%clk 0:01:17.9]} 24. Ne3 {[%clk 0:01:14.5]} 24... Qxb5 {[%clk 0:01:16.5]} 25.
Nf5 {[%clk 0:01:15.6]} 25... d5 {[%clk 0:01:06]} 26. Nxg7 {[%clk 0:00:58.7]}
26... Rxe4 {[%clk 0:00:51.7]} 27. Nh5 {[%clk 0:00:55.8]} 27... Rxd4 {[%clk
0:00:30.2]} 28. Qxd4 {[%clk 0:00:51.4]} 28... Qb6 {[%clk 0:00:31.6]} 29. Qxb6
{[%clk 0:00:50.3]} 29... axb6 {[%clk 0:00:33.5]} 30. Nxf6+ {[%clk 0:00:45]}
30... Kh8 {[%clk 0:00:34.9]} 31. Nxd5 {[%clk 0:00:42.9]} 31... Ra8 {[%clk
0:00:36.2]} 32. Rf2 {[%clk 0:00:30.2]} 32... b5 {[%clk 0:00:34]} 33. h4 {[%clk
0:00:28.1]} 33... Rd8 {[%clk 0:00:34.1]} 34. Ne7 {[%clk 0:00:22]} 34... Kg7
{[%clk 0:00:28.5]} 35. Kh2 {[%clk 0:00:21.8]} 35... b4 {[%clk 0:00:27.9]} 36.
Nf5+ {[%clk 0:00:17.3]} 36... Kf6 {[%clk 0:00:26.4]} 37. Ne3+ {[%clk 0:00:18.1]}
37... Ke5 {[%clk 0:00:26.1]} 38. Rf7 {[%clk 0:00:18.5]} 38... Ke4 {[%clk
0:00:21.6]} 39. Ng4 {[%clk 0:00:16]} 39... Rd2 {[%clk 0:00:19.2]} 40. Rxb7
{[%clk 0:00:16.6]} 40... Rxa2 {[%clk 0:00:18.5]} 41. Rxb4+ {[%clk 0:00:17.1]}
41... Kf5 {[%clk 0:00:18]} 42. Kh3 {[%clk 0:00:18.2]} 42... Ra3+ {[%clk
0:00:18.3]} 43. g3 {[%clk 0:00:19.1]} 43... Ra1 {[%clk 0:00:20.2]} 44. Rf4+
{[%clk 0:00:19.5]} 44... Kg6 {[%clk 0:00:20.6]} 45. Rf6+ {[%clk 0:00:19.2]}
45... Kg7 {[%clk 0:00:21.7]} 46. Rb6 {[%clk 0:00:19.6]} 46... Rh1+ {[%clk
0:00:20]} 47. Kg2 {[%clk 0:00:20.8]} 47... Ra1 {[%clk 0:00:21.9]} 48. h5 {[%clk
0:00:21.9]} 48... Ra2+ {[%clk 0:00:22]} 49. Kh3 {[%clk 0:00:23.1]} 49... h6
{[%clk 0:00:23]} 50. Nxh6 {[%clk 0:00:22.8]} 50... Ra5 {[%clk 0:00:24.5]} 51. g4
{[%clk 0:00:21.9]} 51... Kh7 {[%clk 0:00:23.3]} 52. Nf5 {[%clk 0:00:22.6]} 52...
Ra7 {[%clk 0:00:24.4]} 53. Kh4 {[%clk 0:00:23.2]} 53... Rd7 {[%clk 0:00:24.8]}
54. Re6 {[%clk 0:00:23.6]} 54... Rd1 {[%clk 0:00:24.5]} 55. Re7+ {[%clk
0:00:24]} 55... Kg8 {[%clk 0:00:25.9]} 56. Ra7 {[%clk 0:00:24.8]} 56... Kf8
{[%clk 0:00:26.9]} 57. h6 {[%clk 0:00:25.5]} 57... Kg8 {[%clk 0:00:27.9]} 58.
Kg5 {[%clk 0:00:25.7]} 58... Rc1 {[%clk 0:00:25.9]} 59. Kg6 {[%clk 0:00:24.4]}
59... Rc6+ {[%clk 0:00:26.2]} 60. Kh5 {[%clk 0:00:25.4]} 60... Kh8 {[%clk
0:00:26.9]} 61. g5 {[%clk 0:00:23.9]} 61... Rc8 {[%clk 0:00:24.2]} 62. g6 {[%clk
0:00:23.1]} 62... Rb8 {[%clk 0:00:22.5]} 63. Kg5 {[%clk 0:00:20.5]} 63... Rc8
{[%clk 0:00:21.8]} 64. Rh7+ {[%clk 0:00:17.4]} 64... Kg8 {[%clk 0:00:21.5]} 65.
Ne7+ {[%clk 0:00:18.9]} 65... Kf8 {[%clk 0:00:22.9]} 66. Nxc8 {[%clk 0:00:19.6]}
66... Kg8 {[%clk 0:00:24]} 67. Nd6 {[%clk 0:00:19.1]} 67... Kf8 {[%clk
0:00:24.7]} 68. Rf7+ {[%clk 0:00:19.8]} 68... Kg8 {[%clk 0:00:25.7]} 69. h7+
{[%clk 0:00:21.2]} 69... Kh8 {[%clk 0:00:27.1]} 70. Rf8+ {[%clk 0:00:22.5]}
70... Kg7 {[%clk 0:00:28.3]} 71. h8=Q# {[%clk 0:00:23.8]} 1-0

[Event "*** Titled Tuesday Blitz"]
[Site "Chess.com"]
[Date "2019.07.02"]
[Round "6"]
[White "BlackBoarder"]
[Black "nubair1198"]
[Result "1-0"]
[WhiteElo "2504"]
[BlackElo "2648"]
[TimeControl "180+2"]
[EndTime "14:24:54 PDT"]
[Termination "BlackBoarder won by resignation"]

1. e4 {[%clk 0:03:01.9]} 1... g6 {[%clk 0:03:00.6]} 2. d4 {[%clk 0:03:02.7]}
2... Bg7 {[%clk 0:03:02]} 3. Nc3 {[%clk 0:03:03.9]} 3... c6 {[%clk 0:03:03.2]}
4. Nf3 {[%clk 0:03:01.3]} 4... d6 {[%clk 0:02:54.5]} 5. a4 {[%clk 0:02:59.7]}
5... Nf6 {[%clk 0:02:55.4]} 6. Be2 {[%clk 0:02:59.5]} 6... O-O {[%clk
0:02:56.8]} 7. O-O {[%clk 0:03:00.4]} 7... a5 {[%clk 0:02:57.5]} 8. h3 {[%clk
0:03:01]} 8... Nbd7 {[%clk 0:02:58.3]} 9. Bf4 {[%clk 0:03:00.9]} 9... Nh5 {[%clk
0:02:56.7]} 10. Bh2 {[%clk 0:03:01.2]} 10... e5 {[%clk 0:02:58]} 11. dxe5 {[%clk
0:02:41.1]} 11... dxe5 {[%clk 0:02:59.9]} 12. Qd6 {[%clk 0:02:41.5]} 12... Re8
{[%clk 0:02:48.7]} 13. Rfd1 {[%clk 0:02:31]} 13... Bf8 {[%clk 0:02:49.7]} 14.
Qd2 {[%clk 0:02:28.3]} 14... Qf6 {[%clk 0:02:50.8]} 15. Qg5 {[%clk 0:01:56.1]}
15... Qxg5 {[%clk 0:02:16.5]} 16. Nxg5 {[%clk 0:01:58]} 16... Bh6 {[%clk
0:02:18.2]} 17. Nf3 {[%clk 0:01:19.7]} 17... Bf4 {[%clk 0:02:15.2]} 18. g3
{[%clk 0:01:11]} 18... Bh6 {[%clk 0:02:16.4]} 19. Kg2 {[%clk 0:01:04.6]} 19...
Nc5 {[%clk 0:02:12.7]} 20. Nd2 {[%clk 0:01:02.8]} 20... Be6 {[%clk 0:02:05.6]}
21. Nc4 {[%clk 0:00:56.4]} 21... Bxc4 {[%clk 0:02:00.8]} 22. Bxc4 {[%clk
0:00:56.6]} 22... Rad8 {[%clk 0:02:02.7]} 23. f3 {[%clk 0:00:55]} 23... Be3
{[%clk 0:01:59.4]} 24. Ne2 {[%clk 0:00:49.9]} 24... Rxd1 {[%clk 0:01:56.6]} 25.
Rxd1 {[%clk 0:00:49.9]} 25... Nxa4 {[%clk 0:01:58.2]} 26. Rd7 {[%clk 0:00:49.3]}
26... Kh8 {[%clk 0:01:40.8]} 27. Rxb7 {[%clk 0:00:44.3]} 27... f5 {[%clk
0:01:40.3]} 28. exf5 {[%clk 0:00:42.7]} 28... Nc5 {[%clk 0:01:35.1]} 29. Rc7
{[%clk 0:00:41.7]} 29... Rb8 {[%clk 0:01:31.7]} 30. g4 {[%clk 0:00:35.5]} 30...
Nf4+ {[%clk 0:01:31.1]} 31. Nxf4 {[%clk 0:00:35.8]} 31... exf4 {[%clk
0:01:32.6]} 32. f6 {[%clk 0:00:32.8]} 32... g5 {[%clk 0:01:28.4]} 33. b3 {[%clk
0:00:30.1]} 33... Rf8 {[%clk 0:01:15]} 34. Rxc6 {[%clk 0:00:26]} 34... Bd4
{[%clk 0:01:15.8]} 35. Bg1 {[%clk 0:00:25.5]} 35... Bxg1 {[%clk 0:01:16.1]} 36.
Kxg1 {[%clk 0:00:26.5]} 36... Nd7 {[%clk 0:01:18]} 37. f7 {[%clk 0:00:26]} 37...
Ne5 {[%clk 0:01:19]} 38. Rc5 {[%clk 0:00:13.3]} 38... Nxf3+ {[%clk 0:01:20.2]}
39. Kf2 {[%clk 0:00:12.4]} 39... Nd2 {[%clk 0:01:18.8]} 40. Bd5 {[%clk
0:00:07.2]} 40... Kg7 {[%clk 0:01:00.2]} 41. Rxa5 {[%clk 0:00:08.4]} 41... Rd8
{[%clk 0:00:57.4]} 42. c4 {[%clk 0:00:09.7]} 42... Nxb3 {[%clk 0:00:58]} 43. Ra7
{[%clk 0:00:07.2]} 43... Nc5 {[%clk 0:00:53.9]} 44. f8=Q+ {[%clk 0:00:06.8]}
44... Kxf8 {[%clk 0:00:54.3]} 45. Rxh7 {[%clk 0:00:08.5]} 45... Rd6 {[%clk
0:00:53.2]} 46. Rf7+ {[%clk 0:00:08.4]} 46... Ke8 {[%clk 0:00:53.3]} 47. Rf5
{[%clk 0:00:09.9]} 47... Rh6 {[%clk 0:00:49.5]} 48. Kg2 {[%clk 0:00:08.1]} 48...
Kd7 {[%clk 0:00:39.6]} 49. Rxg5 {[%clk 0:00:07.8]} 49... Ra6 {[%clk 0:00:39.8]}
50. Rf5 {[%clk 0:00:05.2]} 50... Ra2+ {[%clk 0:00:37.7]} 51. Kf3 {[%clk
0:00:06.2]} 51... Nd3 {[%clk 0:00:36.3]} 52. Ke4 {[%clk 0:00:07.6]} 52... Nf2+
{[%clk 0:00:37.5]} 53. Kxf4 {[%clk 0:00:06]} 53... Nxh3+ {[%clk 0:00:39.1]} 54.
Ke5 {[%clk 0:00:07.2]} 54... Ra1 {[%clk 0:00:30.6]} 55. Kf6 {[%clk 0:00:08]}
55... Rg1 {[%clk 0:00:30.3]} 56. g5 {[%clk 0:00:09]} 56... Ke8 {[%clk
0:00:19.1]} 57. g6 {[%clk 0:00:09.4]} 57... Kf8 {[%clk 0:00:20.7]} 58. c5 {[%clk
0:00:04.8]} 58... Rg4 {[%clk 0:00:10.3]} 59. c6 {[%clk 0:00:05.5]} 59... Nf4
{[%clk 0:00:11.1]} 60. g7+ {[%clk 0:00:04.4]} 60... Rxg7 {[%clk 0:00:03.5]} 61.
Rxf4 {[%clk 0:00:05.7]} 61... Ra7 {[%clk 0:00:04.2]} 62. Ke6+ {[%clk 0:00:06.4]}
62... Ke8 {[%clk 0:00:05.4]} 63. Rh4 {[%clk 0:00:07.3]} 63... Re7+ {[%clk
0:00:05.6]} 64. Kd6 {[%clk 0:00:07.8]} 64... Kd8 {[%clk 0:00:03.7]} 65. Rh8+
{[%clk 0:00:08.3]} 65... Re8 {[%clk 0:00:05.1]} 66. c7+ {[%clk 0:00:09.5]} 1-0